[Event "*** Titled Tuesday 3|2 Blitz"]
[Site "Chess.com"]
[Date "2016.02.02"]
[Round "8"]
[White "Winehouse83"]
[Black "kharposh"]
[Result "1-0"]
[WhiteElo "2295"]
[BlackElo "2061"]
[TimeControl "180+2"]
[EndTime "12:48:32 PST"]
[Termination "Winehouse83 won by resignation"]

1. d4 {[%clk 0:03:01.9]} 1... d5 {[%clk 0:02:59.9]} 2. c4 {[%clk 0:03:03.1]}
2... e6 {[%clk 0:03:00.8]} 3. Nf3 {[%clk 0:03:03.6]} 3... c5 {[%clk 0:03:00.9]}
4. cxd5 {[%clk 0:03:03.4]} 4... exd5 {[%clk 0:03:00]} 5. g3 {[%clk 0:03:02.2]}
5... Nc6 {[%clk 0:03:00.3]} 6. Bg2 {[%clk 0:03:02.1]} 6... Bg4 {[%clk
0:02:54.7]} 7. dxc5 {[%clk 0:02:58.3]} 7... Bxc5 {[%clk 0:02:54.3]} 8. O-O
{[%clk 0:02:59.1]} 8... Nf6 {[%clk 0:02:47.6]} 9. a3 {[%clk 0:02:59.7]} 9... O-O
{[%clk 0:02:46.4]} 10. b4 {[%clk 0:03:00]} 10... Bb6 {[%clk 0:02:45.9]} 11. Bb2
{[%clk 0:03:01]} 11... Ne4 {[%clk 0:02:46.2]} 12. Nbd2 {[%clk 0:02:56.9]} 12...
Qe7 {[%clk 0:02:38.9]} 13. Nb3 {[%clk 0:02:44.8]} 13... Rad8 {[%clk 0:02:23.2]}
14. Nbd4 {[%clk 0:02:44.4]} 14... Ne5 {[%clk 0:02:06.6]} 15. Nxe5 {[%clk
0:02:36.6]} 15... Qxe5 {[%clk 0:02:07]} 16. f3 {[%clk 0:02:37.2]} 16... Nd6
{[%clk 0:01:43.2]} 17. Kh1 {[%clk 0:01:53.4]} 17... Bh5 {[%clk 0:01:34.7]} 18.
f4 {[%clk 0:01:15.7]} 18... Qe3 {[%clk 0:01:24.9]} 19. Qd3 {[%clk 0:01:16]}
19... Bxd4 {[%clk 0:01:11.6]} 20. Qxd4 {[%clk 0:01:01.2]} 20... Qxd4 {[%clk
0:01:06.2]} 21. Bxd4 {[%clk 0:01:03.1]} 21... Bxe2 {[%clk 0:01:06.9]} 22. Rfe1
{[%clk 0:01:04]} 22... Bc4 {[%clk 0:01:05.9]} 23. Bxa7 {[%clk 0:01:03.7]} 23...
Nb5 {[%clk 0:01:00.8]} 24. Bc5 {[%clk 0:01:02.5]} 24... Rfe8 {[%clk 0:01:01.2]}
25. a4 {[%clk 0:01:02.3]} 25... Nc3 {[%clk 0:00:57.6]} 26. Bb6 {[%clk 0:00:52]}
26... Ra8 {[%clk 0:00:48.6]} 27. a5 {[%clk 0:00:49.5]} 27... Ne4 {[%clk
0:00:45.6]} 28. Bxe4 {[%clk 0:00:39.1]} 28... dxe4 {[%clk 0:00:43.5]} 29. Kg1
{[%clk 0:00:40.2]} 29... f5 {[%clk 0:00:41.9]} 30. Rad1 {[%clk 0:00:37]} 30...
Bd3 {[%clk 0:00:42.6]} 31. Kf2 {[%clk 0:00:35.7]} 31... Rec8 {[%clk 0:00:42.7]}
32. Rc1 {[%clk 0:00:35.2]} 32... Kf7 {[%clk 0:00:41.3]} 33. Ke3 {[%clk
0:00:36.2]} 33... Ke6 {[%clk 0:00:39.4]} 34. h3 {[%clk 0:00:34.9]} 34... Kd5
{[%clk 0:00:37.2]} 35. g4 {[%clk 0:00:34.7]} 35... g6 {[%clk 0:00:35.4]} 36.
gxf5 {[%clk 0:00:32.8]} 36... gxf5 {[%clk 0:00:36.2]} 37. Rg1 {[%clk 0:00:34.2]}
37... Rxc1 {[%clk 0:00:23.9]} 38. Rxc1 {[%clk 0:00:34.9]} 38... Rg8 {[%clk
0:00:24.8]} 39. Rc5+ {[%clk 0:00:30.2]} 39... Ke6 {[%clk 0:00:24.1]} 40. Re5+
{[%clk 0:00:30.6]} 40... Kf6 {[%clk 0:00:22.7]} 41. Bc5 {[%clk 0:00:29.7]} 41...
Rg3+ {[%clk 0:00:18.3]} 42. Kd4 {[%clk 0:00:30.8]} 42... Rf3 {[%clk 0:00:18]}
43. Be7+ {[%clk 0:00:31.5]} 43... Kg6 {[%clk 0:00:18.8]} 44. Bg5 {[%clk
0:00:29.5]} 44... Rxh3 {[%clk 0:00:17.7]} 45. Re6+ {[%clk 0:00:29.6]} 45... Kg7
{[%clk 0:00:18.5]} 46. Re7+ {[%clk 0:00:28.1]} 46... Kg6 {[%clk 0:00:19]} 47.
Rxb7 {[%clk 0:00:28.7]} 47... h6 {[%clk 0:00:17.2]} 48. Rb6+ {[%clk 0:00:29.4]}
48... Kg7 {[%clk 0:00:18.2]} 49. Bf6+ {[%clk 0:00:30.4]} 49... Kg6 {[%clk
0:00:18.3]} 50. Be5+ {[%clk 0:00:31.1]} 50... Kh5 {[%clk 0:00:18.9]} 51. a6
{[%clk 0:00:32.3]} 51... Bxa6 {[%clk 0:00:16.7]} 52. Rxa6 {[%clk 0:00:33.1]}
52... Rd3+ {[%clk 0:00:18.1]} 53. Kc4 {[%clk 0:00:34.3]} 53... Kg4 {[%clk
0:00:18.6]} 54. Rxh6 {[%clk 0:00:34.5]} 54... Rd7 {[%clk 0:00:15.1]} 55. Rd6
{[%clk 0:00:26]} 55... Rc7+ {[%clk 0:00:11.5]} 56. Kd4 {[%clk 0:00:24.9]} 56...
Rb7 {[%clk 0:00:12]} 57. Kc5 {[%clk 0:00:22.6]} 57... e3 {[%clk 0:00:13]} 58.
Re6 {[%clk 0:00:23.5]} 58... e2 {[%clk 0:00:12.8]} 59. Bd6 {[%clk 0:00:22]}
59... Kf3 {[%clk 0:00:12.8]} 60. Kc6 {[%clk 0:00:23.3]} 60... Ra7 {[%clk
0:00:10.9]} 61. b5 {[%clk 0:00:24.3]} 61... Ra2 {[%clk 0:00:11.2]} 62. b6 {[%clk
0:00:25.6]} 62... Rc2+ {[%clk 0:00:10.2]} 63. Kd7 {[%clk 0:00:25.1]} 63... Rb2
{[%clk 0:00:10.8]} 64. Bc7 {[%clk 0:00:25.9]} 64... Kf2 {[%clk 0:00:10.7]} 65.
Kc8 {[%clk 0:00:26.9]} 65... e1=Q {[%clk 0:00:11.4]} 66. Rxe1 {[%clk 0:00:27.8]}
66... Kxe1 {[%clk 0:00:13.2]} 67. b7 {[%clk 0:00:29.2]} 67... Kf2 {[%clk
0:00:12.5]} 68. b8=Q {[%clk 0:00:30.3]} 68... Rxb8+ {[%clk 0:00:12.8]} 69. Bxb8
{[%clk 0:00:31.5]} 69... Ke3 {[%clk 0:00:14.3]} 70. Kd7 {[%clk 0:00:32.3]} 70...
Ke4 {[%clk 0:00:14.4]} 71. Ke6 {[%clk 0:00:33.4]} 1-0

[Event "*** Titled Tuesday 3|2 Blitz"]
[Site "Chess.com"]
[Date "2016.02.02"]
[Round "8"]
[White "BartoszSocko"]
[Black "GeorgMeier"]
[Result "0-1"]
[WhiteElo "2677"]
[BlackElo "2695"]
[TimeControl "180+2"]
[EndTime "12:49:07 PST"]
[Termination "GeorgMeier won on time"]

1. e4 {[%clk 0:03:01.9]} 1... e6 {[%clk 0:03:01.2]} 2. d4 {[%clk 0:03:02.6]}
2... d5 {[%clk 0:03:02.4]} 3. Nd2 {[%clk 0:03:03.9]} 3... dxe4 {[%clk
0:03:03.7]} 4. Nxe4 {[%clk 0:03:05.8]} 4... Nd7 {[%clk 0:03:05.4]} 5. Nf3 {[%clk
0:03:06.2]} 5... Ngf6 {[%clk 0:03:06.6]} 6. Bg5 {[%clk 0:03:06.8]} 6... h6
{[%clk 0:03:07.5]} 7. Nxf6+ {[%clk 0:03:04.1]} 7... Nxf6 {[%clk 0:03:04.6]} 8.
Bh4 {[%clk 0:03:05.3]} 8... c5 {[%clk 0:03:05.1]} 9. Bb5+ {[%clk 0:03:04.2]}
9... Bd7 {[%clk 0:03:06.3]} 10. Bxd7+ {[%clk 0:03:02]} 10... Qxd7 {[%clk
0:03:08.2]} 11. Bxf6 {[%clk 0:03:01.2]} 11... gxf6 {[%clk 0:03:08.8]} 12. O-O
{[%clk 0:02:58.4]} 12... cxd4 {[%clk 0:02:45.9]} 13. Nxd4 {[%clk 0:02:58.5]}
13... Rd8 {[%clk 0:02:02.1]} 14. c3 {[%clk 0:02:54.7]} 14... Bg7 {[%clk
0:02:02.3]} 15. Re1 {[%clk 0:02:45.9]} 15... O-O {[%clk 0:02:01.4]} 16. Qh5
{[%clk 0:02:41.9]} 16... Qd5 {[%clk 0:02:00.1]} 17. Qh4 {[%clk 0:02:35.4]} 17...
Qg5 {[%clk 0:01:56.5]} 18. Qe4 {[%clk 0:02:16.9]} 18... Rd7 {[%clk 0:01:51.4]}
19. Rad1 {[%clk 0:02:04.9]} 19... Qd5 {[%clk 0:01:20.2]} 20. Qxd5 {[%clk
0:01:58.6]} 20... Rxd5 {[%clk 0:01:20.8]} 21. c4 {[%clk 0:01:59.7]} 21... Rd7
{[%clk 0:01:18.9]} 22. Nb5 {[%clk 0:01:56]} 22... Rfd8 {[%clk 0:01:19.8]} 23.
Rxd7 {[%clk 0:01:54.1]} 23... Rxd7 {[%clk 0:01:20.9]} 24. Nxa7 {[%clk
0:01:53.9]} 24... Rd2 {[%clk 0:01:21.5]} 25. Rb1 {[%clk 0:01:49.8]} 25... f5
{[%clk 0:01:21]} 26. Nb5 {[%clk 0:01:48.7]} 26... Bxb2 {[%clk 0:01:17.3]} 27. a4
{[%clk 0:01:39.6]} 27... b6 {[%clk 0:00:58]} 28. g3 {[%clk 0:01:39.5]} 28... Bf6
{[%clk 0:00:49.5]} 29. Rc1 {[%clk 0:00:48.5]} 29... Bb2 {[%clk 0:00:33.7]} 30.
Rb1 {[%clk 0:00:46]} 30... Bf6 {[%clk 0:00:33.3]} 31. Rc1 {[%clk 0:00:46.3]}
31... Ra2 {[%clk 0:00:32.7]} 32. c5 {[%clk 0:00:46.3]} 32... bxc5 {[%clk
0:00:34.1]} 33. Rxc5 {[%clk 0:00:48.2]} 33... Rxa4 {[%clk 0:00:35.1]} 34. Rc2
{[%clk 0:00:48.9]} 34... Be5 {[%clk 0:00:31]} 35. Re2 {[%clk 0:00:41.6]} 35...
Bb8 {[%clk 0:00:27.4]} 36. Rd2 {[%clk 0:00:38.5]} 36... Kg7 {[%clk 0:00:27.8]}
37. Kg2 {[%clk 0:00:38.3]} 37... Be5 {[%clk 0:00:28.4]} 38. f4 {[%clk
0:00:35.7]} 38... Rb4 {[%clk 0:00:24]} 39. Nd6 {[%clk 0:00:31.9]} 39... Bd4
{[%clk 0:00:24.2]} 40. Rc2 {[%clk 0:00:24.6]} 40... Bb6 {[%clk 0:00:23.7]} 41.
Nc4 {[%clk 0:00:25.2]} 41... Bc7 {[%clk 0:00:22.8]} 42. Nd2 {[%clk 0:00:25.8]}
42... Bd6 {[%clk 0:00:22.1]} 43. Nf3 {[%clk 0:00:27]} 43... Kf6 {[%clk
0:00:21.3]} 44. Rd2 {[%clk 0:00:27.6]} 44... Ke7 {[%clk 0:00:22.6]} 45. Ra2
{[%clk 0:00:28.1]} 45... Rb7 {[%clk 0:00:22.5]} 46. Rc2 {[%clk 0:00:25.4]} 46...
h5 {[%clk 0:00:22]} 47. Re2 {[%clk 0:00:26.1]} 47... Rd7 {[%clk 0:00:21.7]} 48.
Nd4 {[%clk 0:00:26.3]} 48... Kf6 {[%clk 0:00:22]} 49. Nf3 {[%clk 0:00:27.6]}
49... Bc5 {[%clk 0:00:21.6]} 50. Rc2 {[%clk 0:00:28.2]} 50... Bd6 {[%clk
0:00:21.8]} 51. Rd2 {[%clk 0:00:29.2]} 51... Ke7 {[%clk 0:00:23.1]} 52. Ng5
{[%clk 0:00:27.9]} 52... Rd8 {[%clk 0:00:21.7]} 53. Nf3 {[%clk 0:00:24.5]} 53...
Rd7 {[%clk 0:00:22.8]} 54. Re2 {[%clk 0:00:24.2]} 54... Rc7 {[%clk 0:00:21.4]}
55. Nd4 {[%clk 0:00:24.4]} 55... Rc5 {[%clk 0:00:22.5]} 56. Ra2 {[%clk
0:00:23.8]} 56... Rd5 {[%clk 0:00:22.1]} 57. Nf3 {[%clk 0:00:24.8]} 57... Bc5
{[%clk 0:00:22.6]} 58. Rb2 {[%clk 0:00:23.8]} 58... Rd7 {[%clk 0:00:21.9]} 59.
Ne5 {[%clk 0:00:24.2]} 59... Rc7 {[%clk 0:00:23.2]} 60. Rc2 {[%clk 0:00:23.1]}
60... Bd6 {[%clk 0:00:22.9]} 61. Rxc7+ {[%clk 0:00:22]} 61... Bxc7 {[%clk
0:00:24.8]} 62. Nd3 {[%clk 0:00:19.2]} 62... f6 {[%clk 0:00:24.9]} 63. Kf3
{[%clk 0:00:15.3]} 63... e5 {[%clk 0:00:24.8]} 64. Nb4 {[%clk 0:00:09.8]} 64...
Kd6 {[%clk 0:00:22.4]} 65. Nc2 {[%clk 0:00:09.8]} 65... Bb6 {[%clk 0:00:21.7]}
66. h3 {[%clk 0:00:07.8]} 66... e4+ {[%clk 0:00:18.2]} 67. Ke2 {[%clk 0:00:09]}
67... Kd5 {[%clk 0:00:19.7]} 68. Nb4+ {[%clk 0:00:09.1]} 68... Kc5 {[%clk
0:00:20.8]} 69. Na6+ {[%clk 0:00:05]} 69... Kd6 {[%clk 0:00:22.1]} 70. Nb4
{[%clk 0:00:06]} 70... Bc5 {[%clk 0:00:23.5]} 71. Na2 {[%clk 0:00:06.3]} 71...
Kd5 {[%clk 0:00:24.9]} 72. Nc3+ {[%clk 0:00:07.5]} 72... Kc4 {[%clk 0:00:26.2]}
73. Nd1 {[%clk 0:00:06.5]} 73... Bd4 {[%clk 0:00:26.8]} 74. Kd2 {[%clk
0:00:02.3]} 74... Kb3 {[%clk 0:00:27.8]} 0-1

[Event "*** Titled Tuesday 3|2 Blitz"]
[Site "Chess.com"]
[Date "2016.02.02"]
[Round "8"]
[White "Dr-Bassem"]
[Black "ChadaevNikolay"]
[Result "0-1"]
[WhiteElo "2468"]
[BlackElo "2529"]
[TimeControl "180+2"]
[EndTime "12:49:58 PST"]
[Termination "ChadaevNikolay won by resignation"]

1. e4 {[%clk 0:03:01.9]} 1... c5 {[%clk 0:02:57.5]} 2. Nf3 {[%clk 0:03:02.4]}
2... Nc6 {[%clk 0:02:58.4]} 3. d3 {[%clk 0:03:02.2]} 3... g6 {[%clk 0:02:58.8]}
4. g3 {[%clk 0:03:03.4]} 4... Bg7 {[%clk 0:02:59.8]} 5. Bg2 {[%clk 0:03:05.1]}
5... e6 {[%clk 0:03:00.9]} 6. O-O {[%clk 0:03:06.7]} 6... Nge7 {[%clk
0:03:01.8]} 7. c3 {[%clk 0:03:08.3]} 7... e5 {[%clk 0:02:52.1]} 8. Be3 {[%clk
0:02:57.2]} 8... d6 {[%clk 0:02:25.4]} 9. Nbd2 {[%clk 0:02:55.7]} 9... O-O
{[%clk 0:02:25.3]} 10. Nh4 {[%clk 0:02:56.7]} 10... Be6 {[%clk 0:02:20.6]} 11.
f4 {[%clk 0:02:56.9]} 11... exf4 {[%clk 0:02:17.3]} 12. gxf4 {[%clk 0:02:57.4]}
12... f5 {[%clk 0:02:18.1]} 13. Ndf3 {[%clk 0:02:58]} 13... h6 {[%clk
0:02:14.4]} 14. exf5 {[%clk 0:02:50.5]} 14... Nxf5 {[%clk 0:02:13.6]} 15. Nxf5
{[%clk 0:02:35]} 15... Bxf5 {[%clk 0:02:13.3]} 16. d4 {[%clk 0:02:33.7]} 16...
Qe7 {[%clk 0:01:49.9]} 17. Re1 {[%clk 0:02:28.7]} 17... Be4 {[%clk 0:01:28.2]}
18. Bf2 {[%clk 0:02:11]} 18... d5 {[%clk 0:01:27]} 19. dxc5 {[%clk 0:02:07.3]}
19... Rae8 {[%clk 0:01:27.2]} 20. Nh4 {[%clk 0:01:47.4]} 20... Qe6 {[%clk
0:01:13.9]} 21. Bxe4 {[%clk 0:01:38.9]} 21... dxe4 {[%clk 0:01:13.4]} 22. Qb3
{[%clk 0:01:40.3]} 22... Rxf4 {[%clk 0:01:12.6]} 23. Bg3 {[%clk 0:01:41.5]}
23... Rg4 {[%clk 0:01:11]} 24. Ng2 {[%clk 0:01:35.4]} 24... Ne5 {[%clk
0:01:11.5]} 25. Bxe5 {[%clk 0:01:29.8]} 25... Bxe5 {[%clk 0:01:12.2]} 26. Re3
{[%clk 0:01:17.6]} 26... Kg7 {[%clk 0:01:01.3]} 27. Qxe6 {[%clk 0:01:03.6]}
27... Rxe6 {[%clk 0:01:01.6]} 28. Rae1 {[%clk 0:01:04.7]} 28... Bf6 {[%clk
0:00:57.7]} 29. h3 {[%clk 0:00:41.4]} 29... Rg5 {[%clk 0:00:57.9]} 30. Rxe4
{[%clk 0:00:41.2]} 30... Rxe4 {[%clk 0:00:58.5]} 31. Rxe4 {[%clk 0:00:43.1]}
31... Rxc5 {[%clk 0:00:59.9]} 32. Nf4 {[%clk 0:00:43.8]} 32... Kf7 {[%clk
0:00:59.3]} 33. Kf2 {[%clk 0:00:41.7]} 33... Rf5 {[%clk 0:00:53.4]} 34. Ke2
{[%clk 0:00:34.7]} 34... h5 {[%clk 0:00:54.2]} 35. a4 {[%clk 0:00:33.1]} 35...
Be5 {[%clk 0:00:49.9]} 36. Nd3 {[%clk 0:00:34]} 36... Bf6 {[%clk 0:00:49.1]} 37.
c4 {[%clk 0:00:33.7]} 37... a5 {[%clk 0:00:46.3]} 38. c5 {[%clk 0:00:30.9]}
38... Be7 {[%clk 0:00:37.7]} 39. b4 {[%clk 0:00:31.4]} 39... axb4 {[%clk
0:00:37.3]} 40. Rxb4 {[%clk 0:00:33.3]} 40... Bxc5 {[%clk 0:00:37.5]} 41. Rxb7+
{[%clk 0:00:34.1]} 41... Kf6 {[%clk 0:00:38.5]} 42. a5 {[%clk 0:00:26.8]} 42...
Bg1 {[%clk 0:00:35.3]} 43. a6 {[%clk 0:00:26.1]} 43... Ra5 {[%clk 0:00:36.1]}
44. Nb4 {[%clk 0:00:23.3]} 44... Kg5 {[%clk 0:00:36.3]} 45. Kf1 {[%clk 0:00:19]}
45... Ra1+ {[%clk 0:00:36.9]} 46. Kg2 {[%clk 0:00:19.8]} 46... Be3 {[%clk
0:00:30.4]} 47. Rb5+ {[%clk 0:00:19.7]} 47... Kh4 {[%clk 0:00:29.2]} 48. Re5
{[%clk 0:00:13.7]} 48... Bd2 {[%clk 0:00:25.3]} 49. Re4+ {[%clk 0:00:14.2]}
49... Kg5 {[%clk 0:00:25.8]} 50. h4+ {[%clk 0:00:11.8]} 50... Kh6 {[%clk
0:00:26.2]} 51. Rd4 {[%clk 0:00:10.4]} 51... Bc3 {[%clk 0:00:24.8]} 52. Rc4
{[%clk 0:00:11.6]} 52... Bxb4 {[%clk 0:00:25.8]} 53. Rxb4 {[%clk 0:00:13.5]}
53... Rxa6 {[%clk 0:00:27.4]} 54. Kg3 {[%clk 0:00:14.9]} 54... Kg7 {[%clk
0:00:28.2]} 55. Rf4 {[%clk 0:00:14.8]} 55... Ra3+ {[%clk 0:00:27.5]} 56. Kg2
{[%clk 0:00:15.7]} 56... Ra5 {[%clk 0:00:28.5]} 57. Kg3 {[%clk 0:00:16.4]} 57...
Re5 {[%clk 0:00:29.2]} 58. Kh3 {[%clk 0:00:14.6]} 58... Rf5 {[%clk 0:00:29.1]}
59. Ra4 {[%clk 0:00:15.4]} 59... Kf6 {[%clk 0:00:30.1]} 60. Ra6+ {[%clk
0:00:15.9]} 60... Kg7 {[%clk 0:00:31.2]} 61. Ra7+ {[%clk 0:00:17.3]} 61... Rf7
{[%clk 0:00:32.8]} 62. Ra6 {[%clk 0:00:18.7]} 62... Rd7 {[%clk 0:00:33.5]} 63.
Kg3 {[%clk 0:00:19.3]} 63... Kf7 {[%clk 0:00:34.6]} 64. Rb6 {[%clk 0:00:17.9]}
64... Rd3+ {[%clk 0:00:34.9]} 65. Kg2 {[%clk 0:00:19.2]} 65... Re3 {[%clk
0:00:36.1]} 66. Ra6 {[%clk 0:00:19.2]} 66... Re6 {[%clk 0:00:37.6]} 67. Ra5
{[%clk 0:00:16.9]} 67... Kf6 {[%clk 0:00:38.7]} 68. Kg3 {[%clk 0:00:17.8]} 68...
Re5 {[%clk 0:00:38.9]} 69. Ra4 {[%clk 0:00:18.7]} 69... Re3+ {[%clk 0:00:39]}
70. Kf4 {[%clk 0:00:15.2]} 70... Rh3 {[%clk 0:00:36.7]} 71. Ra6+ {[%clk
0:00:13.6]} 71... Kg7 {[%clk 0:00:37.8]} 72. Ra7+ {[%clk 0:00:11.7]} 72... Kh6
{[%clk 0:00:38.7]} 73. Ra8 {[%clk 0:00:07.9]} 73... Rxh4+ {[%clk 0:00:39.6]} 74.
Ke5 {[%clk 0:00:09.5]} 74... Rh1 {[%clk 0:00:39.1]} 75. Kf4 {[%clk 0:00:08.4]}
75... Rf1+ {[%clk 0:00:38.3]} 76. Kg3 {[%clk 0:00:09.6]} 76... Rf5 {[%clk
0:00:39.2]} 77. Kh4 {[%clk 0:00:09.5]} 77... Rf4+ {[%clk 0:00:38.7]} 78. Kg3
{[%clk 0:00:10.8]} 78... Kg5 {[%clk 0:00:40.2]} 79. Ra5+ {[%clk 0:00:11.4]}
79... Rf5 {[%clk 0:00:41.4]} 80. Ra4 {[%clk 0:00:13.1]} 80... Rc5 {[%clk
0:00:42.1]} 81. Ra3 {[%clk 0:00:13.5]} 81... h4+ {[%clk 0:00:42.6]} 82. Kh3
{[%clk 0:00:15]} 82... Kh5 {[%clk 0:00:44.2]} 83. Ra4 {[%clk 0:00:15.4]} 83...
g5 {[%clk 0:00:44.5]} 84. Kh2 {[%clk 0:00:14.1]} 84... g4 {[%clk 0:00:43.8]} 85.
Ra3 {[%clk 0:00:15.4]} 85... Kg5 {[%clk 0:00:43.1]} 86. Ra4 {[%clk 0:00:14.2]}
86... Rc2+ {[%clk 0:00:43.9]} 87. Kh1 {[%clk 0:00:15.6]} 87... h3 {[%clk
0:00:45.5]} 88. Ra3 {[%clk 0:00:17]} 88... Kh4 {[%clk 0:00:46.7]} 89. Rb3 {[%clk
0:00:16.2]} 89... Rc1+ {[%clk 0:00:45.3]} 90. Kh2 {[%clk 0:00:17.2]} 90... g3+
{[%clk 0:00:45.8]} 91. Rxg3 {[%clk 0:00:18.3]} 91... Rc2+ {[%clk 0:00:46.9]} 0-1

[Event "*** Titled Tuesday 3|2 Blitz"]
[Site "Chess.com"]
[Date "2016.02.02"]
[Round "8"]
[White "E-Shaposhnikov"]
[Black "AnthonyWirig"]
[Result "1/2-1/2"]
[WhiteElo "2500"]
[BlackElo "2498"]
[TimeControl "180+2"]
[EndTime "12:50:18 PST"]
[Termination "Game drawn by repetition"]

1. e4 {[%clk 0:03:01.9]} 1... d5 {[%clk 0:02:58.9]} 2. exd5 {[%clk 0:03:02.4]}
2... Qxd5 {[%clk 0:03:00.8]} 3. Nc3 {[%clk 0:03:03.1]} 3... Qd6 {[%clk
0:03:02.2]} 4. d4 {[%clk 0:03:01.2]} 4... g6 {[%clk 0:03:03.6]} 5. Nb5 {[%clk
0:02:58.8]} 5... Qb6 {[%clk 0:02:55.7]} 6. Bf4 {[%clk 0:02:53.3]} 6... Na6
{[%clk 0:02:56.5]} 7. c4 {[%clk 0:02:39.6]} 7... c6 {[%clk 0:02:53.6]} 8. c5
{[%clk 0:02:38.7]} 8... Qa5+ {[%clk 0:02:49.1]} 9. Nc3 {[%clk 0:02:35.6]} 9...
Bg7 {[%clk 0:02:48.7]} 10. Bc4 {[%clk 0:02:26.3]} 10... Qb4 {[%clk 0:02:35.8]}
11. Bb3 {[%clk 0:01:52.8]} 11... Qxd4 {[%clk 0:02:32.9]} 12. Qf3 {[%clk
0:01:52.6]} 12... Nxc5 {[%clk 0:02:21.9]} 13. Bxf7+ {[%clk 0:01:48]} 13... Kf8
{[%clk 0:02:11.9]} 14. Be3 {[%clk 0:01:22.5]} 14... Nd3+ {[%clk 0:01:45.9]} 15.
Ke2 {[%clk 0:01:00.5]} 15... Ne5 {[%clk 0:00:57.8]} 16. Bxd4 {[%clk 0:00:57.4]}
16... Nxf3 {[%clk 0:00:53]} 17. Nxf3 {[%clk 0:00:41.7]} 17... Bxd4 {[%clk
0:00:44.7]} 18. Nxd4 {[%clk 0:00:37.8]} 18... Kxf7 {[%clk 0:00:45.3]} 19. Ne4
{[%clk 0:00:39.1]} 19... h6 {[%clk 0:00:45.9]} 20. Nf3 {[%clk 0:00:28.3]} 20...
Bg4 {[%clk 0:00:44]} 21. h3 {[%clk 0:00:23.7]} 21... Bxf3+ {[%clk 0:00:44.3]}
22. Kxf3 {[%clk 0:00:25.6]} 22... Nf6 {[%clk 0:00:45.2]} 23. Nc5 {[%clk
0:00:25.7]} 23... b6 {[%clk 0:00:45.3]} 24. Nd3 {[%clk 0:00:26.9]} 24... Nd7
{[%clk 0:00:41.8]} 25. Rhd1 {[%clk 0:00:26.8]} 25... Rhf8 {[%clk 0:00:39.8]} 26.
Ke3 {[%clk 0:00:26.2]} 26... e5 {[%clk 0:00:36.2]} 27. Nb4 {[%clk 0:00:26.1]}
27... Ke6 {[%clk 0:00:26.4]} 28. Nxc6 {[%clk 0:00:24.9]} 28... Rfc8 {[%clk
0:00:24.4]} 29. Rac1 {[%clk 0:00:24.5]} 29... Nf6 {[%clk 0:00:25.7]} 30. Nb4
{[%clk 0:00:20.9]} 30... Rxc1 {[%clk 0:00:25]} 31. Rxc1 {[%clk 0:00:21.7]} 31...
Rd8 {[%clk 0:00:16.5]} 32. Rc6+ {[%clk 0:00:19.1]} 32... Rd6 {[%clk 0:00:17.6]}
33. Rxd6+ {[%clk 0:00:11.8]} 33... Kxd6 {[%clk 0:00:19.5]} 34. Nc2 {[%clk
0:00:08.2]} 34... Kd5 {[%clk 0:00:18.5]} 35. Kd3 {[%clk 0:00:09.6]} 35... e4+
{[%clk 0:00:18.3]} 36. Kc3 {[%clk 0:00:10.4]} 36... Ke5 {[%clk 0:00:17.9]} 37.
Kc4 {[%clk 0:00:10.7]} 37... Nd5 {[%clk 0:00:15.7]} 38. g3 {[%clk 0:00:11.3]}
38... a6 {[%clk 0:00:15.5]} 39. a4 {[%clk 0:00:11.7]} 39... h5 {[%clk
0:00:15.8]} 40. Ne3 {[%clk 0:00:09.8]} 40... Nc7 {[%clk 0:00:16.8]} 41. b4
{[%clk 0:00:10.4]} 41... Ne6 {[%clk 0:00:17.3]} 42. a5 {[%clk 0:00:11.3]} 42...
b5+ {[%clk 0:00:17.7]} 43. Kc3 {[%clk 0:00:12.5]} 43... Ng5 {[%clk 0:00:16.9]}
44. h4 {[%clk 0:00:10.9]} 44... Nh3 {[%clk 0:00:18.5]} 45. Nd1 {[%clk
0:00:12.2]} 45... e3 {[%clk 0:00:15.7]} 46. Nxe3 {[%clk 0:00:08.3]} 46... Nxf2
{[%clk 0:00:16.8]} 47. Ng2 {[%clk 0:00:06.6]} 47... Ne4+ {[%clk 0:00:16.8]} 48.
Kd3 {[%clk 0:00:07.9]} 48... Nxg3 {[%clk 0:00:18.7]} 49. Ne3 {[%clk 0:00:07.8]}
49... Nf5 {[%clk 0:00:19.6]} 50. Ng2 {[%clk 0:00:08.4]} 50... Ne7 {[%clk
0:00:17.6]} 51. Kc3 {[%clk 0:00:06.1]} 51... Nd5+ {[%clk 0:00:18.9]} 52. Kb3
{[%clk 0:00:07.3]} 52... Ke4 {[%clk 0:00:20.4]} 53. Ne1 {[%clk 0:00:08.3]} 53...
Ne3 {[%clk 0:00:21]} 54. Kc3 {[%clk 0:00:08.1]} 54... Nd5+ {[%clk 0:00:17.5]}
55. Kb3 {[%clk 0:00:09]} 55... Ke3 {[%clk 0:00:19]} 56. Nc2+ {[%clk 0:00:08.6]}
56... Kd3 {[%clk 0:00:20.4]} 57. Ne1+ {[%clk 0:00:09.6]} 57... Ke4 {[%clk
0:00:21.5]} 58. Nc2 {[%clk 0:00:08.5]} 58... Nf4 {[%clk 0:00:20.6]} 59. Na3
{[%clk 0:00:08.8]} 59... Ne6 {[%clk 0:00:19.5]} 60. Nb1 {[%clk 0:00:09.3]} 60...
Nd4+ {[%clk 0:00:19.8]} 61. Kc3 {[%clk 0:00:10.2]} 61... Nf5 {[%clk 0:00:19.2]}
62. Nd2+ {[%clk 0:00:10.3]} 62... Kd5 {[%clk 0:00:17.2]} 63. Nf3 {[%clk
0:00:11.3]} 63... Nd6 {[%clk 0:00:17.6]} 64. Kd3 {[%clk 0:00:11.8]} 64... Ne4
{[%clk 0:00:18.2]} 65. Ke3 {[%clk 0:00:12.1]} 65... Nc3 {[%clk 0:00:17]} 66. Kf4
{[%clk 0:00:11.3]} 66... Na2 {[%clk 0:00:17.5]} 67. Kg5 {[%clk 0:00:12]} 67...
Nxb4 {[%clk 0:00:17.5]} 68. Kxg6 {[%clk 0:00:13.6]} 68... Nc6 {[%clk 0:00:18.4]}
69. Kxh5 {[%clk 0:00:14.8]} 69... b4 {[%clk 0:00:20.3]} 70. Kg5 {[%clk
0:00:12.9]} 70... b3 {[%clk 0:00:18.5]} 71. h5 {[%clk 0:00:13.1]} 71... b2
{[%clk 0:00:16]} 72. Nd2 {[%clk 0:00:14.1]} 72... Ne5 {[%clk 0:00:17.7]} 73. Kf5
{[%clk 0:00:14.6]} 73... Nf3 {[%clk 0:00:13.2]} 74. Nb1 {[%clk 0:00:14.8]} 74...
Nd4+ {[%clk 0:00:14.6]} 75. Kf6 {[%clk 0:00:15.8]} 75... Ne6 {[%clk 0:00:08.4]}
76. h6 {[%clk 0:00:16.9]} 76... Nf8 {[%clk 0:00:09]} 77. Kg7 {[%clk 0:00:16.8]}
77... Ne6+ {[%clk 0:00:10.3]} 78. Kf6 {[%clk 0:00:17.9]} 78... Nf8 {[%clk
0:00:11.5]} 79. Kf7 {[%clk 0:00:18.8]} 79... Nh7 {[%clk 0:00:12.6]} 80. Kg7
{[%clk 0:00:20.2]} 80... Ng5 {[%clk 0:00:14]} 81. Kg6 {[%clk 0:00:21.2]} 81...
Ne6 {[%clk 0:00:15.1]} 82. Kf6 {[%clk 0:00:21.5]} 82... Nf8 {[%clk 0:00:16.5]}
83. Nc3+ {[%clk 0:00:20.8]} 83... Kc4 {[%clk 0:00:17.4]} 84. Nb1 {[%clk
0:00:21.7]} 84... Kd3 {[%clk 0:00:18.2]} 85. Kf7 {[%clk 0:00:22.4]} 85... Nh7
{[%clk 0:00:19.5]} 86. Kg6 {[%clk 0:00:23.2]} 86... Nf8+ {[%clk 0:00:20.7]} 87.
Kg7 {[%clk 0:00:24.4]} 87... Ne6+ {[%clk 0:00:21.9]} 88. Kf6 {[%clk 0:00:25.2]}
88... Nf8 {[%clk 0:00:23]} 89. Kf7 {[%clk 0:00:25]} 89... Nh7 {[%clk 0:00:24]}
90. Kg6 {[%clk 0:00:26.2]} 90... Nf8+ {[%clk 0:00:25.2]} 91. Kg7 {[%clk
0:00:27.3]} 91... Ne6+ {[%clk 0:00:26]} 92. Kf6 {[%clk 0:00:27.7]} 92... Nf8
{[%clk 0:00:27.3]} 93. Kg7 {[%clk 0:00:28.5]} 93... Ne6+ {[%clk 0:00:28.3]} 94.
Kf6 {[%clk 0:00:29]} 94... Nf8 {[%clk 0:00:29.5]} 95. Kg7 {[%clk 0:00:30.1]}
95... Ne6+ {[%clk 0:00:30.4]} 96. Kf6 {[%clk 0:00:31.1]} 96... Nf8 {[%clk
0:00:31.7]} 1/2-1/2